Workbook

Sheet DATOS (hidden)
B2: DATOS | E2: COMPETENCIA
B3: FALSE | C3: FALSE | D3: 5
B4: IMPORTE | C4: =CALCULADORA!F7 -> 10000 | E4: EMPRESA | F4: =CALCULADORA!F10 -> Mercado Pago
B5: =IF(B3=TRUE,"Importe anual","Importe a cobrar") -> Importe a cobrar | C5: =IF(B3=TRUE,C4*12,C4) -> 10000 | E5: =B5 -> Importe a cobrar | F5: =C5 -> 10000
B6: Monto a recibir | C6: =IF(C3=TRUE,C5-D16,C5-D16-F20) -> 9663.6 | E6: Tasa de Comision | F6: =INDEX(Tabla3[[#All],[COMISION]],MATCH(F4,Tabla3[[#All],[EMPRESA]],0),1) -> 0.035
B7: Meses sin intereses | C7: =IF(D3=5,"Contado",INDEX(Tabla2[PLAZO],MATCH(D3,Tabla2[numero de meses],0),1)) -> Contado | E7: Descuento | F7: =+F5*F6 -> 350
B8: Sobretasa | C8: =IF(D3=5,"No aplica",INDEX(Tabla2[SOBRETASA],MATCH(D3,Tabla2[numero de meses],0))) -> No aplica | E8: IVA de comision | F8: =+F7*0.16 -> 56
B9: Importe sobretasa | C9: =IF(D3=5,"NA",$F$20) -> NA | E9: Importe a recibir | F9: =+F5-F7-F8 -> 9594
B10: Descuento total | C10: =IF(D3=5,D16,D16+F20) -> 336.4 | E10: Total de comision | F10: =+F7+F8 -> 406
E11: =+C5-D16 -> 9663.6 | F11: =+E11-F9 -> 69.6
B12: COMISION GETNET | F12: =((C5-D16)-F9)*12 -> 835.2
B13: GESTION | C13: TASA | D13: DESCUENTO | F13: en comisiones cada año
B14: Comision | C14: 0.029 | D14: =+C14*C5 -> 290
B15: IVA | C15: 0.16 | D15: =D14*C15 -> 46.4
C16: Total de comision | D16: =SUM(DATOS!$D$14:$D$15) -> 336.4
B18: SOBRETASA
B19: PLAZO | C19: SOBRETASA | D19: DESCUENTO | E19: TRASLADO | F19: MONTO SOBRETASA | G19: numero de meses
B20: 3 meses | C20: 0.0355 | D20: =$C$4*Tabla2[[#This Row],[SOBRETASA]]*1.16 -> 411.8 | E20: =(DATOS!$C$14+Tabla2[[#This Row],[SOBRETASA]])+0.01 -> 0.0745 | F20: =IF(DATOS!D3=1,Tabla2[[#This Row],[DESCUENTO]],IF(DATOS!D3=2,D21,IF(DATOS!D3=3,D22,IF(DATOS!D3=4,D23,0)))) -> 0 | G20: 1
B21: 6 meses | C21: 0.064 | D21: =$C$4*Tabla2[[#This Row],[SOBRETASA]]*1.16 -> 742.4 | E21: =(DATOS!$C$14+Tabla2[[#This Row],[SOBRETASA]])+0.01 -> 0.103 | F21: =IF(DATOS!C4=1,Tabla2[[#This Row],[DESCUENTO]],IF(DATOS!C4=2,D22,IF(DATOS!C4=3,D23,IF(DATOS!C4=4,D24,0)))) -> 0 | G21: 2
B22: 9 meses | C22: 0.0933 | D22: =$C$4*Tabla2[[#This Row],[SOBRETASA]]*1.16 -> 1082.28 | E22: =(DATOS!$C$14+Tabla2[[#This Row],[SOBRETASA]])+0.01 -> 0.1323 | F22: =IF(DATOS!C5=1,Tabla2[[#This Row],[DESCUENTO]],IF(DATOS!C5=2,D23,IF(DATOS!C5=3,D24,IF(DATOS!C5=4,D25,0)))) -> 0 | G22: 3
B23: 12 meses | C23: 0.1321 | D23: =$C$4*Tabla2[[#This Row],[SOBRETASA]]*1.16 -> 1532.36 | E23: =(DATOS!$C$14+Tabla2[[#This Row],[SOBRETASA]])+0.01 -> 0.1711 | F23: =IF(DATOS!C7=1,Tabla2[[#This Row],[DESCUENTO]],IF(DATOS!C7=2,D24,IF(DATOS!C7=3,D25,IF(DATOS!C7=4,D26,0)))) -> 0 | G23: 4
B25: LOGOS
B26: EMPRESA | C26: COMISION | D26: LOGO | E26: TASA
B27: Clip | C27: 0.036 | E27: 0.036
B28: Mercado Pago | C28: 0.035 | E28: 0.035

Sheet CALCULADORA
F6: IMPORTE MENSUAL
F7: 10000
F9: Comparado con:
F10: Mercado Pago
